[Event "FIDE Zonal 2.5-W 2019"]
[Site "Montevideo"]
[Date "2019.04.19"]
[Round "9.5"]
[White "Malan, Lucia"]
[Black "Brizzi, Milagros Tatiana"]
[Result "1/2-1/2"]
[ECO "B19"]
[WhiteElo "1877"]
[BlackElo "2126"]
[Annotator "NA"]
[PlyCount "47"]
[EventDate "2019.04.13"]
[EventType "swiss"]
[EventCountry "URU"]
[SourceTitle "playchess.com"]
[Source "ChessBase"]
[SourceQuality "1"]
[TimeControl "40/5400+30:1800+30"]

1. e4 {[%emt 0:00:00]} c6 {[%emt 0:00:00]} 2. d4 {[%emt 0:00:00]} d5 {[%emt 0:00:01]} 3. Nd2 {[%emt 0:00:02]} dxe4 {[%emt 0:00:17]} 4. Nxe4 {[%emt 0:00:12]} Bf5 {[%emt 0:00:18]} 5. Ng3 {[%emt 0:00:12]} Bg6 {[%emt 0:00:12]} 6. Nf3 {[%emt 0:00:13]} Nd7 {[%emt 0:00:17]} 7. h4 {[%emt 0:00:25]} h6 {[%emt 0:00:14]} 8. h5 {[%emt 0:00:09]} Bh7 {[%emt 0:00:10]} 9. Bd3 {[%emt 0:00:26]} Bxd3 {[%emt 0:00:08]} 10. Qxd3 {[%emt 0:00:06]} e6 {[%emt 0:00:07]} 11. Bf4 {[%emt 0:00:25]} Qa5+ {[%emt 0:00:32]} 12. Bd2 {[%emt 0:00:45]} Bb4 {[%emt 0:00:50]} 13. a3 {[%emt 0:02:22]} Bxd2+ {[%emt 0:01:09]} 14. Qxd2 Qd5 {[%emt 0:11:36]} 15. Qb4 {[%emt 0:13:12]} b5 16. O-O-O {[%emt 0:14:53]} a5 {[%emt 0:02:44]} 17. Qc3 {[%emt 0:05:13]} Ne7 {[%emt 0:09:01]} 18. Ne5 O-O {[%emt 0:09:37]} 19. Nxd7 {[%emt 0:03:19]} Qxd7 {[%emt 0:00:14]} 20. Ne4 {[%emt 0:00:55]} Qd5 {[%emt 0:17:52]} 21. f3 {[%emt 0:04:42]} Rfb8 {[%emt 0:08:14]} 22. Qd3 {[%emt 0:09:49]} Rd8 {[%emt 0:11:40]} 23. g4 {[%emt 0:06:26]} b4 {[%emt 0:05:09]} 24. g5 {[%emt 0:09:45]} 1/2-1/2

[Event "FIDE Zonal 2.5-W 2019"]
[Site "Montevideo"]
[Date "2019.04.19"]
[Round "9.6"]
[White "Meza, Anahi"]
[Black "Podesta, Sofia"]
[Result "1-0"]
[ECO "A90"]
[WhiteElo "2073"]
[BlackElo "1417"]
[Annotator "NA"]
[PlyCount "39"]
[EventDate "2019.04.13"]
[EventType "swiss"]
[EventCountry "URU"]
[SourceTitle "playchess.com"]
[Source "ChessBase"]
[SourceQuality "1"]
[TimeControl "40/5400+30:1800+30"]

1. d4 {[%emt 0:00:00]} e6 {[%emt 0:05:30]} 2. c4 {[%emt 0:00:00]} f5 {[%emt 0:00:07]} 3. g3 {[%emt 0:00:00]} Nf6 {[%emt 0:00:11]} 4. Bg2 {[%emt 0:00:09]} d5 {[%emt 0:00:11]} 5. Nc3 {[%emt 0:00:19]} c6 {[%emt 0:00:31]} 6. Nh3 {[%emt 0:00:27]} Bd6 {[%emt 0:00:36]} 7. O-O {[%emt 0:00:17]} O-O {[%emt 0:00:08]} 8. Bf4 {[%emt 0:00:15]} Ne4 {[%emt 0:01:11]} 9. Qc2 {[%emt 0:02:58]} Bxf4 {[%emt 0:05:36]} 10. Nxf4 {[%emt 0:00:26]} Qf6 {[%emt 0:00:50]} 11. cxd5 {[%emt 0:25:26]} Nxc3 {[%emt 0:04:43]} 12. bxc3 {[%emt 0:11:25]} exd5 {[%emt 0:00:38]} 13. c4 {[%emt 0:01:30]} dxc4 {[%emt 0:01:25]} 14. Qxc4+ {[%emt 0:00:19]} Qf7 {[%emt 0:00:12]} 15. Qc3 {[%emt 0:02:07]} Nd7 {[%emt 0:01:10]} 16. d5 {[%emt 0:01:00]} Qf6 {[%emt 0:03:27]} 17. Qb3 {[%emt 0:05:27]} Kh8 {[%emt 0:04:29]} 18. Ne6 {[%emt 0:03:22]} Rf7 {[%emt 0:01:09]} 19. dxc6 {[%emt 0:01:55]} Nb6 {[%emt 0:00:37]} 20. Nd8 {[%emt 0:02:53]} 1-0

[Event "FIDE Zonal 2.5-W 2019"]
[Site "Montevideo"]
[Date "2019.04.19"]
[Round "9.7"]
[White "Sarquis, Maria Belen"]
[Black "Reyes Jara, Paula"]
[Result "1/2-1/2"]
[ECO "B12"]
[WhiteElo "2141"]
[BlackElo "1926"]
[Annotator "NA"]
[PlyCount "73"]
[EventDate "2019.04.13"]
[EventType "swiss"]
[EventCountry "URU"]
[SourceTitle "playchess.com"]
[Source "ChessBase"]
[SourceQuality "1"]
[TimeControl "40/5400+30:1800+30"]

1. e4 {[%emt 0:07:12]} c6 {[%emt 0:00:13]} 2. d4 {[%emt 0:00:25]} d5 {[%emt 0:00:11]} 3. e5 {[%emt 0:00:04]} Bf5 {[%emt 0:00:59]} 4. c3 {[%emt 0:00:13]} e6 {[%emt 0:00:56]} 5. Be3 {[%emt 0:00:06]} Nd7 {[%emt 0:00:42]} 6. f4 {[%emt 0:02:49]} h5 {[%emt 0:04:37]} 7. g3 {[%emt 0:07:32]} Qb6 {[%emt 0:04:23]} 8. b3 {[%emt 0:11:43]} Be7 {[%emt 0:02:13]} 9. Be2 {[%emt 0:00:55]} g6 {[%emt 0:06:19]} 10. Nd2 {[%emt 0:02:18]} Nh6 {[%emt 0:05:40]} 11. h3 {[%emt 0:01:45]} Qa5 {[%emt 0:07:53]} 12. b4 {[%emt 0:07:16]} Qa3 {[%emt 0:02:58]} 13. Qb3 {[%emt 0:00:36]} Qxb3 {[%emt 0:00:55]} 14. axb3 {[%emt 0:00:08]} Rg8 {[%emt 0:01:29]} 15. Ngf3 {[%emt 0:03:36]} f6 {[%emt 0:12:44]} 16. exf6 {[%emt 0:03:37]} Nxf6 {[%emt 0:03:07]} 17. Ng5 {[%emt 0:08:25]} Nf7 {[%emt 0:00:10]} 18. Nxf7 {[%emt 0:00:14]} Kxf7 {[%emt 0:01:18]} 19. Bf3 {[%emt 0:01:35]} a6 {[%emt 0:11:42]} 20. Ke2 {[%emt 0:00:44]} Rg7 21. Kf1 {[%emt 0:00:20]} Bd3+ {[%emt 0:01:07]} 22. Kg2 Ne8 23. g4 {[%emt 0:09:03]} Nd6 {[%emt 0:03:11]} 24. Kg3 {[%emt 0:07:32]} Bd8 {[%emt 0:09:39]} 25. Ra2 {[%emt 0:04:56]} Bc7 {[%emt 0:02:09]} 26. Kg2 {[%emt 0:04:38]} Ke7 {[%emt 0:04:22]} 27. Kf2 {[%emt 0:02:15]} h4 {[%emt 0:00:22]} 28. Be2 {[%emt 0:01:03]} Be4 {[%emt 0:02:27]} 29. Rf1 {[%emt 0:02:27]} Rf8 {[%emt 0:03:26]} 30. Kg1 {[%emt 0:00:16]} Rh7 {[%emt 0:01:13]} 31. Raa1 {[%emt 0:01:45]} Kd7 {[%emt 0:01:19]} 32. c4 {[%emt 0:00:51]} Rhf7 {[%emt 0:02:45]} 33. Rf2 {[%emt 0:00:15]} Bc2 {[%emt 0:01:47]} 34. Raf1 {[%emt 0:04:23]} Ne4 {[%emt 0:00:13]} 35. Nxe4 {[%emt 0:00:20]} Bxe4 {[%emt 0:00:18]} 36. Bc1 {[%emt 0:01:17]} Bc2 {[%emt 0:01:13]} 37. Rf3 {[%emt 0:00:38]} 1/2-1/2